bitfinex/quotes_ETHUSD_20220106
["timestamp","ask_amount","ask_price","bid_price","bid_amount"]
[1641439459106,0.71605,3492.0,3491.7,0.00454738]
[1641439459312,1.43203,3492.2,3491.5,0.00568423]
[1641439459707,0.7160496,3492.0,3491.5,0.00568423]
[1641439459909,4.00576201,3491.9,3491.5,0.00568423]
[1641439460410,4.01823868,3491.9,3491.5,0.00568423]
[1641439460610,4.73424868,3491.9,3491.5,0.00568423]
[1641439460808,2.11977033,3491.9,3491.5,0.00568423]
[1641439461010,1.07040408,3491.2,3491.1,0.00795792]
[1641439461449,1.07040408,3491.2,3490.8,0.00966319]
[1641439461654,2.4481896,3492.0,3490.7,0.01023162]
[1641439462251,2.4481896,3492.0,3490.8,0.71606]
[1641439462755,1.23120399,3491.4,3490.9,0.00909477]
[1641439463360,0.71606,3491.7,3490.9,0.00909477]
[1641439463558,5.056,3492.1,3490.9,0.00909477]
[1641439463758,2.24081701,3492.6,3491.0,0.04392018]
[1641439464057,2.24081701,3492.6,3491.3,1.0]
[1641439464460,2.24081701,3492.6,3492.0,0.71578]
[1641439464461,1.47595254,3492.2,3492.0,0.71578]
[1641439464659,2.24081701,3492.6,3492.0,0.71578]
[1641439464660,1.11321701,3492.6,3492.0,0.71578]
[1641439464859,1.11321701,3492.6,3492.1,0.00227369]
[1641439465705,1.11321701,3492.6,3492.1,2.90227369]
[1641439465905,1.50662316,3492.5,3492.1,2.90227369]
[1641439466106,1.11321701,3492.6,3492.2,0.00170527]
[1641439466706,1.11321701,3492.6,3492.2,1.11130527]
[1641439466906,1.11321701,3492.6,3492.3,1.04392018]
[1641439467108,1.11321701,3492.6,3492.3,1.16665702]
[1641439467308,1.11321701,3492.6,3492.5,6.27583331]
[1641439467707,1.11321701,3492.6,3492.5,7.57118425]
[1641439467907,1.11321701,3492.6,3492.5,77.77598425]
[1641439468107,1.11321701,3492.6,3492.5,94.80771625]
[1641439468309,1.11321701,3492.6,3492.5,8.57278425]
[1641439468509,1.11321701,3492.6,3492.5,93.57438425]
[1641439468709,1.11321701,3492.6,3492.5,59.60296725]
[1641439468956,1.11321701,3492.6,3492.5,63.59536725]
[1641439469160,1.11321701,3492.6,3492.5,61.91113184]
[1641439469362,1.11321701,3492.6,3492.5,61.90953184]
[1641439469562,1.11321701,3492.6,3492.5,77.01553184]
[1641439469766,1.11321701,3492.6,3492.5,90.29251753]
[1641439469967,1.11321701,3492.6,3492.5,65.24050153]
[1641439470164,1.11321701,3492.6,3492.5,86.33210153]
[1641439470365,1.11321701,3492.6,3492.5,85.64290153]
[1641439470564,1.11321701,3492.6,3492.5,86.23770153]
[1641439470771,6.17,3494.2,3492.9,0.18255094]
[1641439470969,6.17,3494.2,3493.2,0.89798094]
[1641439471170,0.00568424,3493.5,3493.2,1.89798094]
[1641439471367,0.00568424,3493.5,3493.4,7.18461606]
[1641439471566,1.09551023,3493.9,3493.4,7.18461606]
[1641439471966,0.00738951,3493.8,3493.4,1.43461606]
[1641439472369,1.09551023,3493.9,3493.4,1.43461606]
[1641439472370,0.00682109,3493.7,3493.4,1.43461606]
[1641439472804,1.09551023,3493.9,3493.6,0.18255094]
[1641439473208,0.00738951,3493.8,3493.6,0.18255094]
[1641439473608,0.00682109,3493.7,3493.6,0.18255094]
[1641439475409,0.00682109,3493.7,3493.6,3.08255094]
[1641439477957,0.00682109,3493.7,3493.6,3.03255094]
[1641439485469,1.93468379,3493.6,3492.6,0.1104]
[1641439485666,1.93468379,3493.6,3492.2,0.4397836]
[1641439485667,0.01271117,3492.9,3492.3,1.54773684]
[1641439485866,0.01271117,3492.9,3492.3,1.43253684]
[1641439486066,0.00170527,3492.8,3492.5,0.71569]
[1641439486465,2.93965731,3493.5,3492.5,0.71569]
[1641439486466,0.00113685,3492.7,3492.6,1.23317433]
[1641439487067,0.00113685,3492.7,3492.3,0.00113684]
[1641439487698,0.71703175,3492.7,3492.3,0.00113684]
[1641439487901,0.71703175,3492.7,3491.3,0.42476126]
[1641439487902,1.35193565,3491.5,3491.4,0.00625265]
[1641439489704,1.35193565,3491.5,3491.3,0.00682108]
[1641439489905,1.35193565,3491.5,3491.0,0.72457635]
[1641439490111,1.35193565,3491.5,3491.1,0.00795792]
[1641439490806,1.35193565,3491.5,3491.2,0.71603]
[1641439491107,1.35193565,3491.5,3491.3,0.00682108]
[1641439492268,1.4447841,3491.9,3490.8,1.1436457]
[1641439492269,0.5,3492.2,3490.9,1.44110477]
[1641439492470,9.57414207,3492.7,3490.9,1.44110477]
[1641439492672,9.57414207,3492.7,3491.0,0.42532635]
[1641439492872,9.57414207,3492.7,3491.0,0.43012635]
[1641439493071,5.67484207,3492.7,3491.1,0.12875792]
[1641439493275,3.8807,3492.5,3492.1,0.71577]
[1641439493672,0.01374207,3492.7,3492.2,0.00170527]
[1641439494072,6.17,3492.6,3492.2,0.00170527]
[1641439494272,6.17,3492.6,3492.1,0.00227369]
[1641439494473,6.47,3492.6,3492.1,0.00227369]
[1641439494672,6.47,3492.6,3492.4,0.71577]
[1641439495306,6.17,3492.6,3492.4,0.71577]
[1641439495908,6.17,3492.6,3492.4,0.75936227]
[1641439496102,6.17,3492.6,3492.5,3.049871]
[1641439496103,5.29440985,3492.6,3492.5,3.049871]
[1641439496302,5.29440985,3492.6,3492.5,0.1088]
[1641439496702,0.00113685,3492.7,3492.5,0.108]
[1641439496902,0.00113685,3492.7,3492.5,0.1072]
[1641439497102,0.00113685,3492.7,3492.5,1.1072]
[1641439497306,0.00113685,3492.7,3492.5,1.0]
[1641439497503,0.00113685,3492.7,3492.4,4.4417559]
[1641439497703,0.00113685,3492.7,3492.5,0.1072]
[1641439497903,0.00113685,3492.7,3492.4,4.4417559]
[1641439498105,0.00113685,3492.7,3492.4,4.4401559]
[1641439498510,0.00113685,3492.7,3492.4,4.4409559]
[1641439498708,0.00113685,3492.7,3492.4,4.4401559]
[1641439499156,0.00113685,3492.7,3492.4,4.4409559]
[1641439499958,0.00113685,3492.7,3492.4,4.4393559]
[1641439500260,0.00113685,3492.7,3492.4,4.4409559]
[1641439500460,0.00113685,3492.7,3492.5,1.0]
[1641439500859,0.00113685,3492.7,3492.5,1.11457648]
[1641439501062,0.00113685,3492.7,3492.5,1.41457648]
[1641439501759,0.00113685,3492.7,3492.5,0.11457648]
[1641439502161,0.00113685,3492.7,3492.5,1.11457648]
[1641439502362,6.17,3492.9,3492.5,0.11457648]
[1641439502562,6.17,3492.9,3492.5,0.83020648]
[1641439504011,6.17,3492.9,3492.5,1.93740648]
[1641439504212,6.17,3492.9,3492.6,0.1112]
[1641439504412,6.17,3492.9,3492.7,1.43101]
[1641439504612,6.17,3492.9,3492.7,1.54141]
[1641439504811,6.17,3492.9,3492.7,1.54061]
[1641439505012,6.17,3492.9,3492.7,2.6018]
[1641439505411,6.17,3492.9,3492.8,7.35]
[1641439505611,6.17,3492.9,3492.7,1.43101]
[1641439505811,6.17113685,3492.9,3492.8,5.15]
[1641439506214,6.17113685,3492.9,3492.8,6.15]
[1641439506856,6.17113685,3492.9,3492.8,1.0]
[1641439507056,6.17113685,3492.9,3492.7,2.84141]
[1641439507257,6.17113685,3492.9,3492.7,1.84221]
[1641439507456,6.17113685,3492.9,3492.8,5.0]
[1641439507657,6.17113685,3492.9,3492.8,1.1072]
[1641439507856,6.17113685,3492.9,3492.8,1.0]
[1641439508057,6.17113685,3492.9,3492.8,6.3072]
[1641439508460,6.17113685,3492.9,3492.8,1.0]
[1641439508763,6.17113685,3492.9,3492.8,1.1096]
[1641439508962,6.17113685,3492.9,3492.8,1.1072]
[1641439509367,6.17113685,3492.9,3492.8,1.0]
[1641439510211,0.00113685,3492.9,3492.8,5.795]
[1641439510612,0.00113685,3492.9,3492.8,2.453]
[1641439510912,0.00113685,3492.9,3492.8,2.345]
[1641439512113,0.00113685,3492.9,3492.8,1.345]
[1641439512315,0.00113685,3492.9,3492.8,0.345]
[1641439516070,3.6542,3494.1,3492.9,4.15]
[1641439516273,3.6542,3494.1,3493.3,0.71556]
[1641439516475,0.00397896,3493.6,3493.3,0.71556]
[1641439516873,0.00341054,3493.5,3493.3,0.71556]
[1641439517273,0.00284212,3493.4,3493.3,0.71556]
[1641439517573,0.00284212,3493.4,3493.2,2.44621123]
[1641439518011,0.00227369,3493.3,3493.2,2.44621123]
[1641439518207,0.00227369,3493.3,3493.2,1.43101]
[1641439519614,0.00227369,3493.3,3493.2,2.46597833]
[1641439520716,0.00227369,3493.3,3493.2,1.03496833]
[1641439520915,0.00227369,3493.3,3493.2,1.14216833]
[1641439521115,0.00227369,3493.3,3493.2,7.44456833]
[1641439521316,6.17,3494.5,3494.2,1.39185461]
[1641439521565,6.17,3494.5,3494.3,1.1583609]
[1641439521766,0.00625266,3494.4,3494.3,1.1583609]
[1641439526511,0.00625266,3494.4,3494.3,4.0583609]
[1641439526715,0.00625266,3494.4,3494.3,2.9]
[1641439531867,6.01873438,3494.4,3494.3,2.86483175]
[1641439532064,6.31873438,3494.4,3494.3,2.86483175]
[1641439532263,8.97723469,3494.4,3494.3,2.86483175]
[1641439532463,6.31873438,3494.4,3494.3,2.86483175]
[1641439532711,0.31873438,3494.4,3494.3,2.86483175]
[1641439532917,1.44505048,3494.4,3494.3,2.86483175]
[1641439533317,0.31873438,3494.4,3494.3,2.86483175]
[1641439533518,0.01873438,3494.4,3494.3,2.86483175]
[1641439534919,0.00625266,3494.4,3494.3,2.86483175]
[1641439541813,4.80625266,3494.4,3494.3,0.36483175]
[1641439542214,0.00625266,3494.4,3494.3,0.36483175]
[1641439551764,50.0,3495.0,3494.3,0.36483175]
[1641439552166,0.00909478,3494.9,3494.3,0.36483175]
[1641439552564,0.00852635,3494.8,3494.3,0.36483175]
[1641439553063,0.00795793,3494.7,3494.4,0.715314]
[1641439553264,0.00795793,3494.7,3494.3,0.36483175]
[1641439553465,0.00738951,3494.6,3494.3,0.36483175]
[1641439553864,0.00682108,3494.5,3494.3,0.36483175]
[1641439554265,50.0,3495.0,3494.3,0.36483175]
[1641439554266,0.00625266,3494.4,3494.3,0.36483175]
[1641439555911,0.00625266,3494.4,3494.3,1.63207869]
[1641439557119,49.89167618,3495.0,3494.4,0.71527]
[1641439557318,49.89167618,3495.0,3494.5,0.71528]
[1641439557517,0.00284212,3494.9,3494.5,0.71528]
[1641439557916,49.89167618,3495.0,3494.5,0.71528]
[1641439557917,0.00227369,3494.8,3494.5,0.71528]
[1641439558323,0.00170527,3494.7,3494.5,0.71528]
[1641439558724,0.00113685,3494.6,3494.5,0.71528]
[1641439559176,0.00113685,3494.6,3494.5,8.11777635]
[1641439559376,0.00113685,3494.6,3494.5,0.86937635]
[1641439559579,0.00113685,3494.6,3494.5,1.87257635]
[1641439559777,0.00113685,3494.6,3494.5,1.87177635]
[1641439559978,0.00113685,3494.6,3494.5,1.87257635]
[1641439560181,0.00113685,3494.6,3494.5,1.82968]
[1641439560480,0.00113685,3494.6,3494.5,1.82808]
[1641439560684,0.00113685,3494.6,3494.5,2.87177635]
[1641439560880,0.00113685,3494.6,3494.5,1.87017635]
[1641439561084,0.00113685,3494.6,3494.5,1.82728]
[1641439561281,0.00113685,3494.6,3494.5,1.82808]
[1641439561482,0.00113685,3494.6,3494.5,1.82888]
[1641439561684,0.00113685,3494.6,3494.5,1.82808]
[1641439561880,0.00113685,3494.6,3494.5,1.82568]
[1641439562080,0.00113685,3494.6,3494.5,1.82648]
[1641439562281,0.00113685,3494.6,3494.5,1.82808]
[1641439562481,0.00113685,3494.6,3494.5,1.82648]
[1641439562712,0.00113685,3494.6,3494.5,1.82808]
[1641439562913,0.00113685,3494.6,3494.5,1.82648]
[1641439563115,0.00113685,3494.6,3494.5,1.82248]
[1641439563320,0.00113685,3494.6,3494.5,1.82568]
[1641439563516,0.00113685,3494.6,3494.5,1.82728]
[1641439563717,0.00113685,3494.6,3494.5,1.82568]
[1641439563918,0.00113685,3494.6,3494.5,1.82728]
[1641439564118,0.00113685,3494.6,3494.5,1.82808]
[1641439564517,0.00113685,3494.6,3494.5,1.82568]
[1641439564918,0.00113685,3494.6,3494.5,1.82728]
[1641439565120,0.00113685,3494.6,3494.5,1.82648]
[1641439565318,0.00113685,3494.6,3494.5,0.82488]
[1641439565520,0.00113685,3494.6,3494.5,0.71528]
[1641439565720,0.00113685,3494.6,3494.3,1.63207869]
[1641439565922,0.00113685,3494.6,3494.3,1.08013175]
[1641439566320,0.00113685,3494.6,3494.3,0.36483175]
[1641439567773,0.00113685,3494.6,3494.4,0.7153087]
[1641439569978,0.00497489,3494.6,3494.4,0.7153087]
[1641439574071,0.00497489,3494.6,3494.3,0.36483175]
[1641439575074,1.51181079,3494.5,3494.3,0.36483175]
[1641439576275,7.01685991,3494.4,3494.3,0.36483175]
[1641439578026,2.76685991,3494.4,3494.3,0.36483175]
[1641439578227,0.00497489,3494.6,3494.3,0.36483175]
[1641439580230,1.14938353,3494.5,3494.3,0.36483175]
[1641439580432,3.1,3494.4,3494.3,0.36483175]
[1641439581581,0.00497489,3494.6,3494.3,0.36483175]
[1641439582178,1.4538899,3494.6,3494.3,0.36483175]
[1641439582378,2.45641837,3494.5,3494.3,0.36483175]
[1641439582578,2.45916431,3494.5,3494.3,0.36483175]
[1641439582779,1.4538899,3494.6,3494.3,0.36483175]
[1641439582978,0.00497489,3494.6,3494.3,0.36483175]
[1641439584386,2.60464234,3494.6,3494.3,0.36483175]
[1641439584982,0.00497489,3494.6,3494.3,0.36483175]
[1641439586019,0.00497489,3494.6,3494.4,1.47803424]
[1641439586422,0.00497489,3494.6,3494.4,1.17803424]
[1641439589074,0.00383804,3494.6,3494.4,1.17803424]
[1641439590578,0.00383804,3494.6,3494.3,0.36483175]
[1641439598974,0.00383804,3494.6,3494.3,2.09531175]
[1641439599174,0.00383804,3494.6,3494.3,1.79531175]
[1641439616223,0.00383804,3494.6,3494.3,2.09531175]
[1641439620268,0.00383804,3494.6,3494.3,1.79531175]
[1641439621469,0.00383804,3494.6,3494.3,2.09531175]
[1641439624725,3.804e-05,3494.6,3494.3,3.09531175]
[1641439626568,51.18369395,3495.0,3494.8,0.71512]
[1641439626768,51.18369395,3495.0,3494.8,0.7151097]
[1641439626769,49.89167618,3495.0,3494.8,0.7151097]
[1641439626968,0.00284212,3494.9,3494.8,2.09671778]
[1641439627169,0.00284212,3494.9,3494.8,1.68160808]
[1641439627772,0.00284212,3494.9,3494.8,2.39671808]
[1641439627969,0.00284212,3494.9,3494.8,1.01511]
[1641439628173,0.00284212,3494.9,3494.7,1.4302194]
[1641439628375,2.5747637,3494.9,3494.3,0.36483175]
[1641439628577,0.00227369,3494.8,3494.3,0.36483175]
[1641439628974,0.00170527,3494.7,3494.3,0.36483175]
[1641439629175,1.40527186,3494.6,3494.3,0.36483175]
[1641439629376,7.25,3494.4,3493.9,1.0]
[1641439629576,2.57192158,3494.3,3493.9,1.0]
[1641439629776,2.57192158,3494.3,3494.0,0.00227369]
[1641439629976,24.23,3494.4,3492.8,3.65396456]
[1641439630229,1.23121125,3493.1,3492.8,3.65396456]
[1641439630430,1.23121125,3493.1,3492.9,0.00625266]
[1641439632126,1.23121125,3493.1,3492.8,0.7156601]
[1641439633029,1.23121125,3493.1,3492.8,0.7155212]
[1641439633228,1.23121125,3493.1,3492.9,1.01558]
[1641439633630,1.23121125,3493.1,3493.0,2.70568424]
[1641439634089,1.23121125,3493.1,3493.0,0.00568424]
[1641439634488,6.9698,3494.2,3493.0,0.00568424]
[1641439634686,3.0966,3494.2,3493.1,0.71552]
[1641439634887,3.0966,3494.2,3493.0,1.02124424]
[1641439635087,3.0966,3494.2,3493.2,0.00454739]
[1641439635387,3.0966,3494.2,3493.1,0.00511581]
[1641439635788,1.1618983,3493.8,3493.4,0.71544]
[1641439635987,1.1618983,3493.8,3493.3,1.4309578]
[1641439636188,1.1618983,3493.8,3493.5,0.00284212]
[1641439636387,1.1618983,3493.8,3493.4,0.00341054]
[1641439637289,1.1618983,3493.8,3493.1,0.7155894]
[1641439637735,1.1618983,3493.8,3493.4,2.9]
[1641439638133,1.1618983,3493.8,3493.5,0.00284212]
[1641439638535,1.1618983,3493.8,3493.5,1.43384012]
[1641439638934,1.1618983,3493.8,3493.6,0.0022737]
[1641439639937,1.1618983,3493.8,3493.6,0.7177523]
[1641439640337,1.1618983,3493.8,3493.7,0.00170527]
[1641439641338,1.1618983,3493.8,3493.6,0.0022737]
[1641439641979,1.1618983,3493.8,3493.6,0.7177457]
[1641439642378,1.1618983,3493.8,3493.7,0.00170527]
[1641439642777,1.1618983,3493.8,3493.6,0.0022737]
[1641439645079,1.08556359,3493.8,3493.6,0.0022737]
[1641439645933,0.00170527,3494.3,3493.6,0.0022737]
[1641439646232,0.00113684,3494.2,3493.8,0.71547]
[1641439646635,0.00284211,3494.5,3494.1,1.15816696]
[1641439646835,0.00284211,3494.5,3493.8,0.71547]
[1641439647038,1.40184893,3493.9,3493.8,0.71547]
[1641439647236,0.00227369,3494.4,3493.8,0.71547]
[1641439647439,0.00341054,3494.6,3493.8,0.00113685]
[1641439647641,0.00170527,3494.3,3493.8,0.00113685]
[1641439647839,0.00284211,3494.5,3493.6,0.0022737]
[1641439648051,0.00113684,3494.2,3493.6,0.0022737]
[1641439648342,1.36869954,3494.1,3493.6,0.0022737]
[1641439649184,1.36869954,3494.1,3493.6,0.7177637]
[1641439649384,1.36869954,3494.1,3493.6,0.0022737]
[1641439649588,1.36869954,3494.1,3493.7,0.00170527]
[1641439649791,1.36869954,3494.1,3493.6,0.0022737]
[1641439650789,1.36869954,3494.1,3493.6,0.7177537]
[1641439651196,1.36869954,3494.1,3493.7,0.00170527]
[1641439651794,1.36869954,3494.1,3493.6,0.0022737]
[1641439652196,1.36869954,3494.1,3493.7,0.7154883]
[1641439652593,1.36869954,3494.1,3493.8,0.00113685]
[1641439653238,0.00284211,3494.5,3493.9,0.7154622]
[1641439653636,0.00227369,3494.4,3493.8,2.14737915]
[1641439654034,0.00170527,3494.3,3493.8,2.14737915]
[1641439654235,0.00170527,3494.3,3494.0,0.71541]
[1641439654435,0.00113684,3494.2,3494.1,0.7154062]
[1641439654640,0.00113684,3494.2,3494.1,1.0154062]
[1641439655435,0.00113684,3494.2,3494.1,9.2654062]
[1641439655834,0.00113684,3494.2,3494.1,2.0154062]
[1641439656236,0.00113684,3494.2,3494.1,1.0154062]
[1641439656478,0.00113684,3494.2,3494.1,0.7154062]
[1641439658078,5.00113684,3494.2,3494.1,0.7154062]
[1641439658483,5.00113684,3494.2,3494.1,3.6154062]
[1641439664772,5.00113684,3494.2,3494.1,4.9154062]
[1641439665276,5.00113684,3494.2,3494.1,3.9154062]
[1641439665877,6.30153909,3494.2,3494.1,3.6154062]
[1641439667281,5.00113684,3494.2,3494.1,3.6154062]
[1641439667929,5.00113684,3494.2,3494.1,3.9154062]
[1641439668128,5.00113684,3494.2,3494.1,4.9154062]
[1641439668730,1.11682259,3494.2,3494.1,4.9154062]
[1641439669333,1.11682259,3494.2,3494.1,3.9154062]
[1641439671338,1.11682259,3494.2,3494.1,3.6154062]
[1641439672885,1.11682259,3494.2,3494.1,3.9154062]
[1641439673484,1.11682259,3494.2,3494.1,3.6154062]
[1641439675730,1.11682259,3494.2,3494.1,3.9154062]
[1641439678035,1.11682259,3494.2,3494.1,3.6154062]
[1641439678432,1.11682259,3494.2,3494.1,3.9154062]
[1641439678634,1.11682259,3494.2,3494.1,3.6154062]
[1641439678837,1.11682259,3494.2,3494.1,3.9154062]
[1641439683519,1.11682259,3494.2,3494.1,3.9154062]
[1641439683920,1.11682259,3494.2,3494.1,3.6154062]
[1641439684119,1.11682259,3494.2,3494.1,2.9]
[1641439684318,7.96682259,3494.2,3494.1,2.9]
[1641439684920,7.96682259,3494.2,3494.1,2.7639]
[1641439685318,7.96682259,3494.2,3494.1,0.3566]
[1641439685718,1.11682259,3494.2,3494.1,0.3566]
[1641439686123,3.86252611,3494.2,3494.1,0.3566]
[1641439692012,1.11682259,3494.2,3494.1,0.3566]
[1641439692213,8.36682259,3494.2,3494.1,0.0001]
[1641439692414,7.25,3494.1,3492.6,5.812877]
[1641439692612,0.71566,3493.6,3492.6,5.812877]
[1641439692912,10.34940006,3494.1,3492.7,0.00852635]
[1641439693318,1.46271317,3493.1,3493.0,0.71565]
[1641439693516,1.46271317,3493.1,3492.7,1.15681642]
[1641439693716,1.46271317,3493.1,3493.0,0.00682108]
[1641439693966,1.46271317,3493.1,3492.9,0.7156613]
[1641439694169,0.71562,3493.7,3492.9,0.7156613]
[1641439694369,0.71562,3493.7,3493.1,0.7156]
[1641439694671,2.54472457,3493.6,3493.2,0.00568423]
[1641439694870,0.71562,3493.7,3493.2,0.00568423]
[1641439695069,0.71562,3493.7,3493.2,0.72128633]
[1641439695070,4.71792901,3493.3,3493.2,0.72128633]
[1641439695269,1.11792901,3493.3,3493.2,0.72128633]
[1641439696574,1.11792901,3493.3,3493.2,0.00568423]
[1641439696771,0.95902901,3493.3,3493.2,0.00568423]
[1641439696971,0.96286836,3493.3,3493.1,0.00625265]
[1641439697370,0.96286836,3493.3,3493.0,0.00682108]
[1641439697570,0.96286836,3493.3,3493.0,0.72244838]
[1641439697814,0.96286836,3493.3,3492.8,0.00795793]
[1641439698015,0.96286836,3493.3,3493.1,0.00625265]
[1641439698219,0.96286836,3493.3,3492.8,0.00795793]
[1641439698623,0.96286836,3493.3,3492.8,1.43922623]
[1641439698821,0.96286836,3493.3,3492.8,2.15486043]
[1641439699023,0.96286836,3493.3,3492.9,0.0073895]
[1641439699228,0.96286836,3493.3,3492.9,2.9073895]
[1641439699625,0.96286836,3493.3,3493.0,0.00682108]
[1641439700827,0.96286836,3493.3,3493.0,0.72244058]
[1641439701226,0.96286836,3493.3,3493.1,0.00625265]
[1641439708823,0.00383935,3493.3,3493.1,0.00625265]
[1641439709264,0.00383935,3493.3,3493.1,0.30625265]
[1641439709670,0.00383935,3493.3,3493.2,0.00568423]
[1641439717966,0.00383935,3493.3,3493.1,0.00625265]
[1641439718769,1.12066194,3493.3,3493.1,0.00625265]
[1641439718970,1.12066194,3493.3,3493.1,0.30625265]
[1641439719370,1.12066194,3493.3,3493.2,2.55568423]
[1641439719571,1.12066194,3493.3,3493.2,0.00568423]
[1641439724165,1.12066194,3493.3,3493.1,0.00625265]
[1641439725172,1.83632194,3493.3,3493.1,0.00625265]
[1641439725371,1.17887119,3493.2,3493.1,0.00625265]
[1641439725971,1.17887119,3493.2,3493.0,0.00682108]
[1641439726375,5.48897019,3493.2,3493.0,0.00682108]
[1641439726674,2.61031119,3493.2,3493.0,0.00682108]
[1641439727073,19.36031119,3493.2,3493.0,0.00682108]
[1641439727475,7.25,3492.9,3491.1,3.9536]
[1641439727724,0.71596,3492.3,3491.1,3.9536]
[1641439727919,0.71596,3492.3,3491.2,0.01023162]
[1641439728523,1.27896091,3491.6,3491.2,0.01023162]
[1641439728720,1.99500091,3491.6,3491.2,0.01023162]
[1641439728920,1.99500091,3491.6,3491.0,1.44327617]
[1641439729219,1.99500091,3491.6,3491.1,0.01080004]
[1641439729622,3.02153726,3491.5,3491.1,0.01080004]
[1641439729822,3.02153726,3491.5,3490.2,2.1480063]
[1641439729823,0.71615,3491.4,3491.0,0.01136847]
[1641439730021,0.71615,3491.4,3490.6,0.01364216]
[1641439730228,0.71615,3491.4,3490.3,0.01534743]
[1641439730422,1.45030376,3490.7,3490.1,0.01648428]
[1641439730722,1.45030376,3490.7,3490.0,0.0170527]
[1641439730921,0.71625,3490.5,3490.0,0.0170527]
[1641439731970,1.43268,3490.5,3490.0,0.0170527]
[1641439732165,0.71628,3490.4,3490.0,0.0170527]
[1641439732366,0.71628,3490.4,3489.4,0.02046324]
[1641439732568,1.45030376,3490.7,3489.2,0.02160009]
[1641439732569,17.75,3490.6,3489.2,0.02160009]
[1641439732771,1.48184116,3489.6,3489.2,0.02160009]
[1641439732965,1.43298,3489.8,3489.0,0.02273694]
[1641439733166,0.71645,3489.8,3489.0,0.02273694]
[1641439733575,2.14947,3490.5,3489.0,0.73907694]
[1641439733770,1.1781,3490.7,3489.1,0.04226962]
[1641439733972,1.1781,3490.7,3489.6,1.28747321]
[1641439734171,1.1781,3490.7,3490.1,1.39043261]
[1641439734371,0.7162,3491.0,3490.1,1.39043261]
[1641439734573,0.7162,3491.0,3490.2,0.01591586]
[1641439734974,0.7162,3491.0,3490.4,1.3434001]
[1641439735230,0.13819997,3491.3,3490.4,1.3434001]
[1641439735434,0.13819997,3491.3,3490.5,0.01421058]
[1641439736029,0.13819997,3491.3,3490.2,0.01591586]
[1641439736231,0.13819997,3491.3,3490.2,0.73208086]
[1641439736634,0.13819997,3491.3,3490.3,0.01534743]
[1641439736931,0.13819997,3491.3,3490.4,1.41012276]
[1641439737334,0.13819997,3491.3,3490.5,0.01421058]
[1641439737738,0.71621,3490.9,3490.5,0.01421058]
[1641439738338,1.57055997,3491.3,3490.5,0.01421058]
[1641439738837,0.71614,3491.2,3490.5,0.01421058]
[1641439739075,1.57055997,3491.3,3490.5,0.01421058]
[1641439739468,1.57055997,3491.3,3490.2,0.01591586]
[1641439739671,0.71621,3490.9,3490.2,0.01591586]
[1641439740070,1.85413086,3490.9,3490.2,0.01591586]
[1641439741470,0.71621,3490.9,3490.2,0.01591586]
[1641439742820,0.71625,3490.6,3490.2,0.01591586]
[1641439744625,1.27848309,3490.2,3489.7,0.01875797]
[1641439745624,0.07149734,3490.2,3489.8,1.07726659]
[1641439745829,0.07149734,3490.2,3489.8,1.37726659]
[1641439746025,0.07149734,3490.2,3489.9,0.01762113]
[1641439746468,1.4326,3490.8,3489.9,0.01762113]
[1641439747067,1.4326,3490.8,3489.7,0.01875797]
[1641439747268,1.4326,3490.8,3489.4,0.02046324]
[1641439747567,1.13523657,3490.4,3489.6,1.16388339]
[1641439747767,0.71634,3490.2,3489.6,1.16388339]
[1641439747966,0.71634,3490.2,3489.7,0.01875797]
[1641439748574,0.720183,3490.2,3489.7,0.01875797]
[1641439749574,0.720183,3490.2,3489.4,0.02046324]
[1641439750816,0.720183,3490.2,3489.6,1.1815915]
[1641439751019,0.720183,3490.2,3489.6,1.4815915]
[1641439751215,0.720183,3490.2,3489.7,0.01875797]
[1641439751622,0.003843,3490.2,3489.7,0.01875797]
[1641439751822,0.003843,3490.2,3489.8,0.64456]
[1641439752020,0.003843,3490.2,3489.8,0.94456]
[1641439752221,0.003843,3490.2,3489.9,0.01762113]
[1641439752621,0.003843,3490.2,3489.9,0.31762113]
[1641439753120,0.003843,3490.2,3490.0,0.0170527]
[1641439753528,0.003843,3490.2,3489.7,0.01875797]
[1641439755373,1.28190806,3490.1,3489.7,0.01875797]
[1641439755972,0.003843,3490.2,3489.7,0.01875797]
[1641439756182,0.003843,3490.2,3489.6,1.45034947]
[1641439756578,0.00227369,3490.1,3489.6,1.45034947]
[1641439756877,0.00170527,3490.0,3489.6,1.45034947]
[1641439757279,0.00113684,3489.9,3489.6,1.45034947]
[1641439757477,0.00113684,3489.9,3489.6,0.26875797]
[1641439757716,0.00113684,3489.9,3489.3,1.4325187]
[1641439758121,0.00113684,3489.9,3489.4,0.00170527]
[1641439758725,1.48194084,3489.6,3489.4,0.00170527]
[1641439758922,1.48194084,3489.6,3489.3,0.0022737]
[1641439759120,0.00113684,3489.9,3489.3,0.0022737]
[1641439759323,0.00113684,3489.9,3489.2,0.00284212]
[1641439759524,0.00113684,3489.9,3489.0,1.10889407]
[1641439759525,0.00113684,3489.9,3489.1,0.00341054]
[1641439760124,0.71645,3489.7,3489.1,0.00341054]
[1641439760523,1.45586232,3489.5,3489.1,0.00341054]
[1641439760724,0.71645,3489.7,3489.1,0.00341054]
[1641439762968,0.71645,3489.7,3489.1,0.71980794]
[1641439763168,0.00113684,3489.9,3489.3,0.64471]
[1641439763778,0.00113684,3489.9,3489.2,0.00284212]
[1641439765621,0.71641,3489.8,3489.2,0.00284212]
[1641439766221,0.71641,3489.8,3489.2,0.64758212]
[1641439766427,0.71641,3489.8,3489.2,0.64474]
[1641439766724,0.71641,3489.8,3489.3,0.0022737]
[1641439769369,2.63648466,3489.7,3489.3,0.0022737]
[1641439769578,0.71649,3489.5,3489.1,0.00341054]
[1641439769768,2.8235287,3489.4,3489.1,0.00341054]
[1641439769968,2.8235287,3489.4,3488.9,0.00454739]
[1641439770267,1.44297643,3489.0,3488.4,0.00738951]
[1641439770770,1.44297643,3489.0,3488.4,1.4286637]
[1641439770971,0.71664,3488.9,3488.4,1.4286637]
[1641439771174,0.71664,3488.9,3488.5,0.00682108]
[1641439771576,1.44297643,3489.0,3488.5,0.00682108]
[1641439772173,2.15951643,3489.0,3488.5,0.00682108]
[1641439772374,1.43301,3489.5,3488.6,0.64487]
[1641439772574,1.43301,3489.5,3488.5,0.00682108]
[1641439772820,1.43301,3489.5,3488.7,0.00568424]
[1641439773016,1.43301,3489.5,3488.5,0.00682108]
[1641439773420,2.71159914,3489.5,3488.6,0.64486]
[1641439773921,0.71649,3489.3,3488.7,0.00568424]
[1641439774124,0.71649,3489.3,3488.8,0.3]
[1641439774521,0.71649,3489.3,3488.9,0.00454739]
[1641439774921,0.71649,3489.3,3488.7,1.3613099]
[1641439775122,0.71649,3489.3,3488.8,0.3]
[1641439775421,0.71649,3489.3,3488.9,0.00454739]